bitfinex-derivatives/quotes_SOLF0:USTF0_20250626
["timestamp","ask_amount","ask_price","bid_price","bid_amount"]
[1750963870974,7.0769,141.26,141.24,7.0776]
[1750963871963,7.0763,141.27,141.25,7.0772]
[1750963872165,36.02,141.28,141.24,6.60812196]
[1750963872360,7.0769,141.26,141.24,13.68562196]
[1750963876673,7.0772,141.25,141.24,6.60812196]
[1750963876867,7.0772,141.25,141.23,6.60812196]
[1750963877858,7.0777,141.24,141.23,6.60812196]
[1750963878066,4.57637359,141.26,141.21,13.68712196]
[1750963878865,7.0785,141.23,141.21,6.60812196]
[1750963879073,4.57637359,141.26,141.21,6.60812196]
[1750963879979,7.0787,141.22,141.21,6.60812196]
[1750963883275,7.0787,141.22,141.2,6.60812196]
[1750963884474,4.57637359,141.24,141.2,6.60812196]
[1750963885184,4.57637359,141.24,141.21,6.60812196]
[1750963886182,7.0787,141.22,141.21,6.60812196]
[1750963888078,4.57637359,141.24,141.21,6.60812196]
[1750963888284,7.0784,141.23,141.21,6.60812196]
[1750963888488,4.57637359,141.24,141.21,6.60812196]
[1750963888784,7.0787,141.22,141.21,6.60812196]
[1750963892187,4.57637359,141.22,141.18,6.60812196]
[1750963892991,7.0802,141.19,141.18,6.60812196]
[1750963893679,7.0807,141.18,141.17,6.60812196]
[1750963897188,2.3631,141.25,141.17,47.18043877]
[1750963897390,40.57231681,141.29,141.21,11.19480499]
[1750963897591,35.98,141.29,141.23,4.59231681]
[1750963897788,35.98,141.29,141.23,11.19480499]
[1750963898484,35.98,141.29,141.24,6.60248818]
[1750963900291,7.0764,141.27,141.24,13.67998818]
[1750963901589,7.0759,141.28,141.25,6.60248818]
[1750963902293,7.0759,141.28,141.25,13.67948818]
[1750963903793,7.0762,141.27,141.25,13.67948818]
[1750963904187,35.98,141.29,141.25,13.67948818]
[1750963904388,7.076,141.28,141.25,13.67948818]
[1750963904793,7.0763,141.27,141.25,13.67948818]
[1750963905194,40.57231681,141.29,141.25,6.60248818]
[1750963905397,7.0772,141.25,141.24,6.60248818]
[1750963907394,35.98,141.29,141.23,13.39504119]
[1750963907696,35.98,141.29,141.25,6.59844781]
[1750963907899,7.0764,141.27,141.25,6.59844781]
[1750963909092,7.0767,141.26,141.24,13.67584781]
[1750963909690,7.0764,141.27,141.24,13.67584781]
[1750963909891,7.0764,141.27,141.25,6.59844781]
[1750963913294,7.0764,141.27,141.25,13.67554781]
[1750963914299,35.98,141.29,141.25,6.59844781]
[1750963914300,7.0767,141.26,141.25,6.59844781]
[1750963914793,7.0767,141.26,141.24,13.67584781]
[1750963915101,7.0767,141.26,141.25,6.59844781]
[1750963915394,7.0772,141.25,141.24,6.59844781]
[1750963916896,7.0777,141.24,141.23,6.59844781]
[1750963917301,7.0777,141.24,141.22,6.59844781]
[1750963918498,4.59231681,141.27,141.22,6.59844781]
[1750963918499,7.0776,141.25,141.23,6.59844781]
[1750963920302,7.0776,141.25,141.23,13.67654781]
[1750963920505,7.0769,141.26,141.23,6.59844781]
[1750963920692,35.98,141.29,141.23,11.19076462]
[1750963920898,35.98,141.29,141.24,6.59844781]
[1750963921201,7.0765,141.27,141.25,6.59844781]
[1750963921402,7.0765,141.27,141.25,13.67544781]
[1750963921603,7.0758,141.28,141.25,6.59844781]
[1750963922193,7.0758,141.28,141.26,7.0764]
[1750963923992,7.0758,141.28,141.25,13.67534781]
[1750963925200,7.0758,141.28,141.26,7.0764]
[1750963925609,7.0762,141.27,141.25,6.59844781]
[1750963926303,7.0762,141.27,141.25,13.67534781]
[1750963927402,7.0759,141.28,141.26,7.0766]
[1750963928399,7.0753,141.29,141.25,11.19076462]
[1750963928604,35.92,141.32,141.25,6.59844781]
[1750963928906,4.59231681,141.31,141.25,11.19076462]
[1750963929309,7.0759,141.28,141.26,7.0764]
[1750963930811,7.0755,141.29,141.27,7.0762]
[1750963931201,35.92,141.32,141.25,11.19076462]
[1750963931609,7.075,141.3,141.27,7.0761]
[1750963932016,7.075,141.3,141.28,7.0754]
[1750963932211,7.0744,141.31,141.27,40.51231681]
[1750963932511,7.03401681,141.34,141.27,35.92]
[1750963932712,7.03401681,141.34,141.28,7.0753]
[1750963932902,7.03401681,141.34,141.28,13.67374781]
[1750963933215,7.0744,141.31,141.28,7.0753]
[1750963933403,7.0744,141.31,141.29,7.0751]
[1750963934916,35.92,141.35,141.29,4.59231681]
[1750963936519,7.0734,141.33,141.31,7.0738]
[1750963937615,7.073,141.34,141.31,7.0738]
[1750963940313,4.59231681,141.36,141.31,7.0738]
[1750963941215,7.073,141.34,141.31,7.0738]
[1750963944217,7.073,141.34,141.29,7.06721681]
[1750963944715,7.073,141.34,141.29,15.86994119]
[1750963945517,7.073,141.34,141.31,7.0738]
[1750963946115,4.59231681,141.36,141.31,7.0738]
[1750963946728,7.0729,141.34,141.32,7.0736]
[1750963946920,47.68349441,141.38,141.31,40.43231681]
[1750963946921,43.01671681,141.38,141.31,40.43231681]
[1750963947324,7.0719,141.36,141.34,7.0726]
[1750963947917,7.0722,141.35,141.33,7.0729]
[1750963948320,43.01671681,141.38,141.31,35.84]
[1750963949023,7.0727,141.34,141.32,7.0734]
[1750963950327,43.01671681,141.38,141.32,7.0734]
[1750963951528,7.073,141.34,141.32,7.0734]
[1750963953331,43.01671681,141.38,141.31,35.84]
[1750963955433,43.01671681,141.38,141.32,7.0734]
[1750963956134,7.0729,141.34,141.32,7.0734]
[1750963957932,7.0724,141.35,141.32,7.0734]
[1750963959137,7.0727,141.34,141.32,7.0734]
[1750963960134,7.0733,141.33,141.31,35.84]
[1750963960539,43.01671681,141.38,141.31,35.84]
[1750963960740,7.0724,141.35,141.32,7.0733]
[1750963961234,38.4244,141.38,141.32,4.59231681]
[1750963961437,2.5244,141.38,141.33,35.84]
[1750963962032,7.0714,141.37,141.34,7.0726]
[1750963962234,2.5244,141.38,141.34,7.0726]
[1750963962439,7.0716,141.37,141.34,7.0726]
[1750963963337,7.0717,141.36,141.34,7.0726]
[1750963964040,7.0714,141.37,141.34,7.0726]
[1750963965639,7.0714,141.37,141.35,7.0721]
[1750963966137,7.0714,141.37,141.33,35.84]
[1750963966337,4.59231681,141.38,141.33,35.84]
[1750963967041,7.0724,141.35,141.33,42.9129]
[1750963967747,7.0724,141.35,141.33,35.84]
[1750963968248,7.0727,141.34,141.33,35.84]
[1750963968545,4.59231681,141.36,141.33,35.84]
[1750963968847,7.0727,141.34,141.31,7.0739]
[1750963969444,7.0727,141.34,141.32,7.0735]
[1750963969739,4.59231681,141.36,141.32,7.0735]
[1750963970046,4.59231681,141.36,141.3,44.64272438]
[1750963970944,4.59231681,141.34,141.3,35.84]
[1750963971147,4.59231681,141.34,141.28,2.4741]
[1750963971148,7.0747,141.31,141.28,15.87812438]
[1750963971645,4.59231681,141.34,141.28,15.87812438]
[1750963971942,4.59231681,141.34,141.28,7.0754]
[1750963973248,7.0744,141.31,141.28,7.0754]
[1750963973852,7.0744,141.31,141.29,7.075]
[1750963974234,7.0744,141.31,141.28,7.0754]
[1750963974746,7.0744,141.31,141.28,8.80272438]
[1750963975044,7.0739,141.32,141.29,7.0749]
[1750963976137,7.0739,141.32,141.28,8.80272438]
[1750963976343,7.0739,141.32,141.29,8.80272438]
[1750963977646,7.0739,141.32,141.29,15.87752438]
[1750963978644,7.0742,141.31,141.29,15.87752438]
[1750963978847,7.0742,141.31,141.29,7.0748]
[1750963979553,7.0747,141.3,141.28,15.87822438]
[1750963979746,7.0747,141.3,141.28,7.0755]
[1750963980154,7.0747,141.3,141.28,15.87822438]
[1750963980948,35.78,141.33,141.3,7.0746]
[1750963981647,7.0739,141.32,141.3,7.0746]
[1750963983854,42.8533,141.33,141.3,7.0746]
[1750963984057,4.59231681,141.4,141.31,40.37231681]
[1750963984358,7.0714,141.37,141.31,49.17504119]
[1750963984562,7.0714,141.37,141.34,7.0722]
[1750963984856,4.30769424,141.39,141.34,7.0722]
[1750963985154,7.0719,141.36,141.34,7.0722]
[1750963985352,7.0719,141.36,141.33,7.0729]
[1750963986558,4.30769424,141.38,141.33,7.0729]
[1750963986759,4.94191394,141.37,141.33,7.0729]
[1750963986958,4.30769424,141.38,141.33,7.0729]
[1750963987257,7.072,141.36,141.33,7.0729]
[1750963987658,7.0715,141.37,141.34,7.0722]
[1750963988257,7.0709,141.38,141.35,4.59231681]
[1750963988558,4.30657637,141.39,141.35,4.59231681]
[1750963988751,42.46537637,141.4,141.35,4.59231681]
[1750963988947,7.0715,141.37,141.35,4.59231681]
[1750963989853,7.0715,141.37,141.35,11.66441681]
[1750963990546,7.0715,141.37,141.35,7.0721]
[1750963992652,7.0709,141.38,141.36,7.0716]
[1750963994256,7.0709,141.38,141.35,7.0719]
[1750963994659,7.0709,141.38,141.36,7.0716]
[1750963997555,38.1588,141.4,141.35,4.59231681]
[1750963997556,7.0703,141.39,141.37,7.0712]
[1750963997762,35.78,141.43,141.37,4.59231681]
[1750963998064,7.0714,141.37,141.35,7.0719]
[1750963998256,4.59231681,141.4,141.34,8.80065754]
[1750963998457,4.59231681,141.4,141.33,15.76257435]
[1750963998657,7.0714,141.37,141.35,7.072]
[1750964001770,4.97147084,141.41,141.35,4.59231681]
[1750964001970,2.411,141.42,141.37,4.59231681]
[1750964002168,4.97699406,141.41,141.37,4.59231681]
[1750964002366,7.0694,141.41,141.38,7.0703]
[1750964003573,7.0697,141.4,141.38,7.0703]
[1750964003765,7.0697,141.4,141.36,4.59231681]
[1750964003971,7.39660417,141.42,141.37,7.0709]
[1750964004166,7.0699,141.4,141.36,4.59231681]
[1750964004870,7.0699,141.4,141.37,7.0708]
[1750964006062,7.0705,141.39,141.36,7.0714]
[1750964006268,7.0705,141.39,141.34,13.39297435]
[1750964007074,7.0705,141.39,141.37,7.0708]
[1750964007262,7.0699,141.4,141.34,13.39297435]
[1750964007467,7.0699,141.4,141.36,4.59231681]
[1750964007868,7.0699,141.4,141.38,7.0704]
[1750964011975,7.0702,141.39,141.37,7.0709]
[1750964013570,4.59231681,141.42,141.36,38.0692]
[1750964014177,7.0705,141.39,141.36,45.1406]
[1750964014877,4.59231681,141.42,141.36,45.1406]
[1750964015382,7.0706,141.39,141.36,45.1406]
[1750964016479,7.0706,141.39,141.37,7.0711]
[1750964019574,35.78,141.43,141.36,42.66151681]
[1750964020372,7.0694,141.41,141.39,7.0701]
[1750964021080,7.0687,141.42,141.4,7.0694]
[1750964021275,4.98186907,141.45,141.38,4.59231681]
[1750964021479,42.72821681,141.46,141.38,4.59231681]
[1750964021788,4.59231681,141.44,141.37,8.80065754]
[1750964022277,7.0689,141.42,141.39,7.0701]
[1750964022480,4.59231681,141.44,141.39,7.0701]
[1750964023182,7.0695,141.41,141.39,7.0701]
[1750964023482,4.59231681,141.42,141.36,35.72]
[1750964023687,40.31231681,141.42,141.36,35.72]
[1750964024079,7.0705,141.39,141.37,7.0709]
[1750964025881,2.4159,141.46,141.36,35.72]
[1750964025882,1.23085629,141.48,141.38,4.58018108]
[1750964026189,13.07436404,141.59,141.46,4.58018108]
[1750964026483,13.07436404,141.59,141.44,4.58018108]
[1750964026484,15.43526404,141.6,141.52,7.0633]
[1750964026681,4.58018108,141.58,141.52,6.58515954]
[1750964027385,4.58018108,141.58,141.51,11.16534062]
[1750964027588,4.58018108,141.58,141.51,4.58018108]
[1750964027884,4.58018108,141.58,141.51,40.30018108]
[1750964028088,6.94108108,141.6,141.51,46.88534062]
[1750964028381,6.94108108,141.6,141.51,40.30018108]
[1750964028589,6.94108108,141.6,141.52,7.0632]
[1750964028590,7.0612,141.57,141.52,7.0632]
[1750964029298,2.3609,141.6,141.51,35.72]
[1750964029586,6.94108108,141.6,141.52,4.58018108]
[1750964029788,7.0614,141.57,141.53,7.0629]
[1750964030590,4.58018108,141.58,141.51,35.72]
[1750964030783,4.5718337,141.58,141.51,40.2918337]
[1750964031277,7.0621,141.56,141.51,40.2918337]
[1750964032390,7.0621,141.56,141.53,7.0628]
[1750964032586,7.0622,141.55,141.51,40.2918337]
[1750964032892,4.5718337,141.6,141.53,7.0631]
[1750964033281,7.0618,141.56,141.53,7.0631]
[1750964034891,7.0618,141.56,141.54,6.90432812]
[1750964035091,7.0618,141.56,141.55,6.90432812]
[1750964036386,7.0631,141.54,141.51,35.72]
[1750964036590,35.72,141.61,141.52,6.89669962]
[1750964036591,4.5718337,141.58,141.52,6.89669962]
[1750964036798,4.5718337,141.58,141.53,6.89669962]
[1750964036994,4.5718337,141.58,141.54,6.89669962]
[1750964037185,4.5718337,141.58,141.55,6.89669962]
[1750964037385,4.5718337,141.58,141.52,7.0637]
[1750964037593,35.72,141.61,141.53,13.95702326]
[1750964037793,4.5718337,141.59,141.54,6.89402326]
[1750964037994,4.5718337,141.59,141.55,6.89402326]
[1750964038196,7.0616,141.57,141.56,6.89402326]
[1750964039388,7.0166337,141.62,141.56,11.46585696]
[1750964039596,7.0166337,141.62,141.57,6.89402326]
[1750964039797,7.0166337,141.62,141.58,6.89402326]
[1750964040094,7.0166337,141.62,141.55,36.58]
[1750964040292,7.0601,141.6,141.56,13.95722337]
[1750964040495,7.0166337,141.62,141.57,6.89582337]
[1750964040797,7.0602,141.59,141.58,6.89582337]
[1750964041894,7.06,141.6,141.58,6.89582337]
[1750964042091,7.06,141.6,141.59,6.89582337]
[1750964042394,7.06,141.6,141.57,7.0611]
[1750964042598,7.0602,141.59,141.58,6.88903762]
[1750964045298,43.64,141.59,141.45,41.1518337]
[1750964045490,4.5718337,141.52,141.45,41.1518337]
[1750964045892,7.0652,141.49,141.45,36.58]
[1750964046595,7.0652,141.49,141.45,43.6469]
[1750964046796,7.0658,141.48,141.45,36.58]
[1750964047594,7.0663,141.47,141.45,36.58]
[1750964048294,4.5718337,141.5,141.45,36.58]
[1750964048601,4.5718337,141.52,141.45,41.1518337]
[1750964048994,4.5718337,141.52,141.45,43.6469]
[1750964049493,7.0653,141.49,141.45,36.58]
[1750964049695,7.0653,141.49,141.46,7.0663]
[1750964051303,4.5718337,141.5,141.45,36.58]
[1750964051510,4.5718337,141.48,141.42,164.26756927]
[1750964051817,4.5718337,141.48,141.44,7.0674]
[1750964052110,4.5718337,141.52,141.44,4.5718337]
[1750964052404,7.0643,141.51,141.44,4.5718337]
[1750964052707,7.0643,141.51,141.46,4.5718337]
[1750964052905,7.0643,141.51,141.46,41.1518337]
[1750964053207,7.0643,141.51,141.48,7.0654]
[1750964053399,635.74,141.62,141.48,4.5718337]
[1750964053595,4.5718337,141.57,141.47,7.113]
[1750964053795,4.5718337,141.57,141.5,4.5718337]
[1750964054001,7.0624,141.55,141.5,4.5718337]
[1750964054306,7.0624,141.55,141.53,7.0632]
[1750964056213,7.0624,141.55,141.47,7.113]
[1750964056214,7.0624,141.55,141.52,7.0633]
[1750964057813,36.58,141.57,141.52,7.0633]
[1750964058006,36.58,141.57,141.51,7.064]
[1750964058208,6.85812255,141.54,141.47,39.0261]
[1750964058407,6.85812255,141.5,141.43,41.3495]
[1750964058611,6.85812255,141.5,141.45,7.0669]
[1750964058813,7.066,141.48,141.43,41.3495]
[1750964059013,6.85812255,141.5,141.44,7.0674]
[1750964059713,6.85812255,141.5,141.45,7.067]
[1750964060210,7.066,141.48,141.44,7.0674]
[1750964061011,6.85812255,141.5,141.45,7.0671]
[1750964061917,6.85812255,141.5,141.44,7.0675]
[1750964062818,7.0659,141.48,141.44,7.0675]
[1750964063610,7.0665,141.47,141.44,7.0675]
[1750964063817,6.85812255,141.48,141.43,43.6479]
[1750964064216,7.0664,141.47,141.43,43.6479]
[1750964064418,7.0664,141.47,141.44,7.0674]
[1750964064820,7.0658,141.48,141.43,36.58]
[1750964065719,7.0658,141.48,141.45,7.0669]
[1750964066632,43.43812255,141.51,141.47,7.0661]
[1750964066922,43.43812255,141.51,141.43,43.43812255]
[1750964066923,7.0652,141.49,141.46,7.0664]
[1750964068323,7.0657,141.48,141.45,7.0669]
[1750964070719,7.0654,141.49,141.46,7.0666]
[1750964071520,43.43812255,141.51,141.46,7.0666]
[1750964072724,7.0657,141.48,141.46,7.0666]
[1750964073420,7.0654,141.49,141.46,7.0666]
[1750964073917,7.065,141.5,141.47,7.0661]
[1750964074720,7.0652,141.49,141.47,7.0661]
[1750964076528,7.0648,141.5,141.48,7.0657]
[1750964077424,7.0648,141.5,141.47,7.0659]
[1750964077726,7.0652,141.49,141.47,7.0659]
[1750964078028,6.86311532,141.53,141.46,13.65145954]
[1750964078325,4.57562037,141.52,141.45,11.47735954]
[1750964078623,4.57562037,141.52,141.47,7.0659]
[1750964078823,4.57579744,141.52,141.47,7.0659]
[1750964079123,7.0654,141.49,141.46,6.58515954]
[1750964079327,7.0654,141.49,141.46,13.65155954]
[1750964079717,7.0654,141.49,141.46,6.58515954]
[1750964079913,7.0654,141.49,141.47,7.0661]
[1750964082428,7.0657,141.48,141.46,13.65155954]
[1750964083326,7.0655,141.49,141.47,7.0662]
[1750964084328,7.0655,141.49,141.47,13.65135954]
[1750964087624,7.0655,141.49,141.48,6.58515954]
[1750964089337,7.0655,141.49,141.47,15.86685754]
[1750964089532,7.0655,141.49,141.48,6.59449351]
[1750964090926,7.0649,141.5,141.48,6.59449351]
[1750964092834,7.0652,141.49,141.48,6.59449351]
[1750964093021,7.0652,141.49,141.47,15.86685754]
[1750964095038,7.0652,141.49,141.48,6.59472494]
[1750964096537,7.0652,141.49,141.47,15.86675754]
[1750964096740,7.0652,141.49,141.48,6.59471719]
[1750964097731,7.0649,141.5,141.48,6.59471719]
[1750964097930,7.0649,141.5,141.49,6.59466908]
[1750964102242,7.0644,141.51,141.49,6.59466908]
[1750964102742,37.28,141.54,141.49,6.59466908]
[1750964102938,37.28,141.54,141.5,6.59466908]
[1750964103146,7.0633,141.53,141.5,6.59466908]
[1750964103732,37.28,141.54,141.5,13.65906908]
[1750964104443,41.21244231,141.57,141.52,6.59466908]
[1750964104649,41.21244231,141.57,141.53,6.59466908]
[1750964105233,4.7569,141.59,141.53,11.16486049]
[1750964105434,7.0599,141.6,141.57,7.0607]
[1750964105641,2.2795,141.62,141.56,43.23466908]
[1750964105839,2.2795,141.62,141.57,6.59466908]
[1750964106132,7.0605,141.59,141.57,6.59466908]
[1750964106538,7.0605,141.59,141.56,50.29596908]
[1750964107043,7.0608,141.58,141.56,43.23466908]
[1750964107644,7.0612,141.57,141.56,36.64]
[1750964107848,4.56896618,141.61,141.54,6.59466908]
[1750964108246,4.56896618,141.61,141.54,13.65726908]
[1750964108840,7.0618,141.56,141.54,6.59466908]
[1750964109749,7.0618,141.56,141.54,13.65736908]
[1750964109949,7.0614,141.57,141.54,13.65736908]
[1750964110552,7.0618,141.56,141.54,13.65736908]
[1750964111051,7.0618,141.56,141.54,7.0627]
[1750964111863,4.56896618,141.59,141.53,43.703]
[1750964113865,4.56896618,141.59,141.53,36.64]
[1750964114067,9.38966618,141.59,141.53,36.64]
[1750964114259,7.0626,141.55,141.53,36.64]
[1750964114459,9.38966618,141.59,141.53,36.64]
[1750964114661,4.56896618,141.57,141.51,11.63296618]
[1750964114861,4.56896618,141.57,141.5,45.44065754]
[1750964115157,4.56896618,141.57,141.5,52.50505754]
[1750964115368,7.0634,141.53,141.5,52.50505754]
[1750964118168,7.0634,141.53,141.5,43.7044]
[1750964119571,7.0637,141.52,141.5,43.7044]
[1750964120073,7.0637,141.52,141.5,36.64]
[1750964121074,38.9872,141.56,141.5,43.21984417]
[1750964121272,36.64,141.56,141.53,6.57984417]
[1750964121573,7.0619,141.56,141.53,13.64294417]
[1750964121767,46.02966618,141.59,141.53,11.14881035]
[1750964122370,46.02966618,141.59,141.54,7.0626]
[1750964123371,7.0617,141.56,141.54,7.0626]
[1750964126078,7.0623,141.55,141.53,18.21171035]
[1750964126780,7.0623,141.55,141.53,6.57984417]
[1750964126978,7.0627,141.54,141.53,6.57984417]
[1750964127278,4.56896618,141.57,141.52,145.03984417]
[1750964127480,7.0632,141.53,141.52,145.03984417]
[1750964127679,4.56896618,141.57,141.52,145.03984417]
[1750964127880,4.56896618,141.57,141.53,7.0631]
[1750964128081,4.56896618,141.57,141.52,145.03984417]
[1750964128274,2.3115,141.58,141.52,145.03984417]
[1750964128578,7.062,141.56,141.52,145.03984417]
[1750964128975,7.062,141.56,141.53,13.64274417]
[1750964129176,7.0622,141.55,141.53,6.57984417]
[1750964129374,2.3115,141.58,141.53,6.57984417]
[1750964129771,7.0627,141.54,141.53,6.57984417]
[1750964130077,7.0627,141.54,141.52,145.03984417]
[1750964131284,7.0627,141.54,141.52,152.10344417]
[1750964134388,7.0627,141.54,141.52,145.5236]
[1750964135394,7.0632,141.53,141.52,138.46]
[1750964136191,4.56896618,141.55,141.5,36.64]
[1750964136985,7.0641,141.52,141.5,36.64]
[1750964138990,7.0641,141.52,141.5,52.50525754]
[1750964139893,7.0634,141.53,141.5,52.50525754]
[1750964140793,7.0637,141.52,141.5,52.50525754]
[1750964140984,4.56896618,141.56,141.5,52.50525754]
[1750964141485,4.56896618,141.56,141.52,6.59033062]
[1750964142695,7.0632,141.53,141.52,6.59033062]
[1750964143097,4.56896618,141.56,141.51,6.59033062]
[1750964143994,7.0637,141.52,141.51,6.59033062]
[1750964148297,7.0637,141.52,141.5,45.44065754]
[1750964149594,7.0637,141.52,141.5,52.50525754]
[1750964149793,7.0637,141.52,141.5,45.44065754]
[1750964150497,7.0642,141.51,141.5,45.44065754]
[1750964151302,7.0642,141.51,141.5,8.80065754]
[1750964151503,4.56896618,141.52,141.46,13.20098632]
[1750964151705,4.56896618,141.5,141.47,6.60171867]
[1750964152106,7.0657,141.48,141.47,6.60171867]
[1750964152498,7.0657,141.48,141.44,174.18]
[1750964152806,7.0653,141.49,141.44,178.76896618]
[1750964153004,7.0653,141.49,141.44,191.9699525]
[1750964153193,36.36,141.51,141.45,7.0668]
[1750964153398,7.0657,141.48,141.45,7.0668]
[1750964153902,7.0657,141.48,141.46,7.0666]
[1750964156306,7.0657,141.48,141.45,144.8669]
[1750964157693,7.0657,141.48,141.45,7.0669]
[1750964160209,7.0663,141.47,141.45,7.0669]
[1750964160409,4.56896618,141.5,141.44,36.36]
[1750964160622,4.56896618,141.48,141.42,17.7699525]
[1750964160820,7.0676,141.45,141.42,137.8]
[1750964161113,36.36,141.51,141.41,36.0]
[1750964161114,4.56896618,141.46,141.41,36.0]
[1750964161413,7.0691,141.41,141.37,13.20098632]
[1750964161602,40.56896618,141.44,141.36,20.1994525]
[1750964162010,4.56896618,141.42,141.37,13.20098632]
[1750964162210,4.56896618,141.42,141.35,137.84]
[1750964163206,40.56896618,141.44,141.38,4.56896618]
[1750964163409,36.0,141.44,141.38,4.56896618]
[1750964163715,7.0686,141.43,141.38,4.56896618]
[1750964164011,7.0686,141.43,141.4,7.0696]
[1750964164404,7.0674,141.45,141.4,4.56896618]
[1750964164604,38.2955,141.47,141.4,4.56896618]
[1750964165209,7.0672,141.45,141.41,7.0688]
[1750964165601,7.0672,141.45,141.4,4.56896618]
[1750964166113,7.0672,141.45,141.41,7.0689]
[1750964166613,7.0677,141.44,141.41,7.0689]
[1750964166816,36.0,141.47,141.42,4.56896618]
[1750964167115,43.0664,141.47,141.42,40.58896618]
[1750964167310,43.0664,141.47,141.44,7.0676]
[1750964167513,7.0664,141.47,141.44,7.0676]
[1750964167914,7.0667,141.46,141.43,7.0679]
[1750964168211,7.0667,141.46,141.42,40.58896618]
[1750964168615,7.0667,141.46,141.43,7.068]
[1750964169111,7.0667,141.46,141.42,40.58896618]
[1750964169704,7.0667,141.46,141.43,7.068]
[1750964169903,7.0672,141.45,141.43,7.068]
[1750964170517,7.0669,141.46,141.43,7.068]
[1750964170718,4.56896618,141.49,141.43,7.068]
[1750964170917,7.067,141.46,141.44,7.0676]
[1750964172721,7.067,141.46,141.43,7.0679]
[1750964172915,7.067,141.46,141.42,40.58896618]
[1750964173416,7.067,141.46,141.43,7.068]
[1750964174219,7.067,141.46,141.44,7.0675]
[1750964175420,7.067,141.46,141.42,40.58896618]
[1750964175421,7.067,141.46,141.43,7.068]
[1750964175822,7.0664,141.47,141.42,40.58896618]
[1750964176214,40.58896618,141.5,141.42,40.58896618]
[1750964176413,7.0667,141.46,141.43,7.0679]
[1750964177021,7.0672,141.45,141.43,7.0679]
[1750964177221,7.0672,141.45,141.42,47.65736618]
[1750964178324,7.0669,141.46,141.43,7.0681]
[1750964179324,7.0666,141.47,141.44,7.0676]
[1750964179712,36.02,141.5,141.44,7.0676]
[1750964180020,7.0666,141.47,141.44,7.0676]
[1750964180725,7.0667,141.46,141.44,7.0676]
[1750964182225,7.0659,141.48,141.45,7.0668]
[1750964182624,36.02,141.5,141.42,47.15183846]
[1750964182825,7.0665,141.47,141.44,7.0674]
[1750964183625,7.0667,141.46,141.44,7.0674]
[1750964184928,7.0664,141.47,141.44,7.0674]
[1750964187529,7.0667,141.46,141.43,18.19973846]
[1750964188032,40.58896618,141.5,141.43,6.56287228]
[1750964188629,7.0669,141.46,141.43,7.0678]
[1750964189127,7.0669,141.46,141.43,13.63067228]
[1750964190834,40.58896618,141.5,141.43,13.63067228]
[1750964191425,40.58896618,141.5,141.44,6.56287228]
[1750964191829,40.58896618,141.5,141.43,13.63067228]
[1750964192025,7.067,141.46,141.43,13.63067228]
[1750964192225,7.067,141.46,141.44,7.0676]
[1750964193129,7.067,141.46,141.44,13.63047228]
[1750964195335,7.067,141.46,141.45,6.56287228]
[1750964201043,36.02,141.5,141.45,6.56287228]
[1750964201234,4.56896618,141.48,141.45,6.56287228]
[1750964201635,7.0664,141.47,141.44,13.63027228]
[1750964201835,7.0664,141.47,141.45,6.56287228]
[1750964202342,7.0664,141.47,141.44,13.63027228]
[1750964203041,7.0664,141.47,141.45,6.56287228]
[1750964204141,7.0659,141.48,141.45,13.62997228]
[1750964205944,7.0659,141.48,141.46,6.56287228]
[1750964206145,7.0661,141.47,141.46,6.56287228]
[1750964211252,7.0661,141.47,141.45,8.75614012]
[1750964212652,7.0661,141.47,141.45,15.82314012]
[1750964213154,7.0661,141.47,141.46,8.75614012]
[1750964213352,36.02,141.5,141.46,8.75614012]
[1750964213552,36.02,141.5,141.47,6.61470224]
[1750964213747,7.0656,141.48,141.47,6.61470224]
[1750964214145,40.19743467,141.5,141.46,6.61470224]
[1750964214548,7.0661,141.47,141.46,6.61470224]
[1750964216062,7.0659,141.48,141.46,6.61470224]
[1750964216361,7.0659,141.48,141.47,6.61470224]
[1750964217760,7.0654,141.49,141.47,6.61470224]
[1750964218061,2.4018,141.52,141.47,6.61470224]